bitfinex-derivatives/quotes_ETHF0:USTF0_20250309
["timestamp","ask_amount","ask_price","bid_price","bid_amount"]
[1741543165533,0.9887,2023.0,2022.3,0.4944]
[1741543165534,5.67945,2023.1,2022.2,9.4434]
[1741543165732,0.98882,2022.8,2022.6,0.98888]
[1741543165932,6.3308,2023.1,2022.6,0.98888]
[1741543166141,3.123,2023.1,2022.6,3.2078]
[1741543166335,3.1304239,2023.1,2022.6,3.2152239]
[1741543166637,0.0074239,2023.1,2022.6,3.2152239]
[1741543166829,0.0074239,2023.1,2023.0,3.2078]
[1741543167033,0.0074239,2023.1,2022.7,3.2078]
[1741543167233,0.0074239,2023.1,2022.6,2.9564239]
[1741543167541,0.0074239,2023.1,2022.7,3.2078]
[1741543167728,0.0074239,2023.1,2023.0,3.2078]
[1741543168135,0.0074239,2023.1,2022.7,3.2078]
[1741543168336,0.9960939,2023.1,2022.8,0.98877]
[1741543168531,0.0074239,2023.1,2023.0,0.9887]
[1741543168842,0.0074239,2023.1,2023.0,4.1965]
[1741543169242,0.0074239,2023.1,2023.0,0.9887]
[1741543169543,0.0074239,2023.1,2022.7,3.2078]
[1741543169743,0.98872,2023.0,2022.7,4.19662]
[1741543169942,0.0074239,2023.1,2022.7,3.2078]
[1741543170339,0.9888,2022.8,2022.7,3.2078]
[1741543170538,3.2152239,2023.1,2022.7,3.2078]
[1741543170833,0.98879,2022.9,2022.7,3.2078]
[1741543171347,3.2152239,2023.1,2022.7,3.2078]
[1741543171348,3.2152239,2023.1,2022.8,0.98879]
[1741543171552,3.2152239,2023.1,2022.7,3.2078]
[1741543171751,0.98879,2022.9,2022.7,4.19664]
[1741543171951,0.98874,2023.0,2022.7,4.19664]
[1741543172254,3.2152239,2023.1,2022.7,3.2078]
[1741543172751,0.98879,2022.9,2022.7,3.2078]
[1741543172952,0.9888,2022.8,2022.7,3.2078]
[1741543173147,6.3142239,2023.1,2022.6,0.0074239]
[1741543173347,0.98885,2022.7,2022.6,0.0074239]
[1741543173954,0.98883,2022.8,2022.6,0.9963139]
[1741543174250,6.3142239,2023.1,2022.6,0.9963039]
[1741543174448,0.98875,2023.0,2022.7,0.98883]
[1741543174744,0.98885,2022.7,2022.6,0.0074239]
[1741543174945,3.2078,2022.8,2021.9,2.949]
[1741543175146,0.98908,2022.3,2021.8,0.35571161]
[1741543175448,13.215,2022.9,2022.1,3.2078]
[1741543175651,0.98888,2022.7,2022.5,0.98892]
[1741543175849,7.29557,2022.9,2022.4,5.68026]
[1741543176044,3.2078,2022.9,2022.4,3.2078]
[1741543176252,0.98883,2022.8,2022.6,0.98889]
[1741543176451,3.2078,2022.9,2022.4,3.2152239]
[1741543176649,0.98892,2022.6,2022.4,4.2041939]
[1741543176852,0.98892,2022.6,2022.5,0.98895]
[1741543177056,3.2078,2022.9,2022.5,0.98895]
[1741543177247,0.98889,2022.7,2022.5,0.98895]
[1741543177557,5.67974,2022.9,2022.4,4.2042139]
[1741543177755,0.98892,2022.6,2022.4,4.2041939]
[1741543178457,3.2078,2022.9,2022.4,3.2152239]
[1741543178756,3.2078,2022.9,2022.8,0.9888]
[1741543179151,0.0074239,2023.1,2023.0,0.9887]
[1741543179955,3.2078,2023.5,2023.4,0.98851]
[1741543180156,4.5528,2024.1,2023.7,0.98836]
[1741543180459,0.98818,2024.1,2023.9,0.98826]
[1741543180658,4.19598,2024.1,2023.9,0.98826]
[1741543180853,0.98825,2024.0,2023.8,0.98829]
[1741543181160,3.1064239,2024.2,2023.8,0.0074239]
[1741543181452,0.98827,2023.9,2023.8,0.0074239]
[1741543181649,3.9e-06,2024.2,2024.1,0.98817]
[1741543181852,4.1953,2025.5,2025.1,0.98766]
[1741543182151,3.2078,2025.5,2025.4,0.98753]
[1741543182353,3.2078,2025.5,2025.0,3.2078]
[1741543183059,3.2152239,2025.5,2025.0,3.2152239]
[1741543183254,0.0074239,2025.5,2025.0,3.2152239]
[1741543183453,3.2152239,2025.5,2025.0,3.2152239]
[1741543183958,3.2152239,2025.5,2025.0,3.56786685]
[1741543184160,3.2152239,2025.5,2025.0,3.2152239]
[1741543184360,0.98768,2025.1,2025.0,0.0074239]
[1741543184552,3.2078,2025.2,2025.0,0.0074239]
[1741543184748,0.98768,2025.1,2025.0,0.0074239]
[1741543185460,4.98768,2025.1,2025.0,0.0074239]
[1741543185655,4.0,2025.1,2024.2,3.2078]
[1741543185857,3.2078,2024.6,2023.8,25.3918]
[1741543186057,2.4698,2024.7,2023.8,25.3918]
[1741543186058,0.9882,2024.1,2023.8,25.3918]
[1741543186361,3.2078,2024.3,2023.8,25.3918]
[1741543186658,0.98824,2024.0,2023.8,3.2078]
[1741543186857,3.2152239,2024.3,2023.8,3.2152239]
[1741543187051,0.98827,2023.9,2023.8,0.0074239]
[1741543188356,0.98827,2023.9,2023.4,3.2078]
[1741543188357,4.0,2023.9,2023.4,3.2078]
[1741543188551,0.98858,2023.3,2023.1,22.177]
[1741543188760,0.98861,2023.2,2023.0,3.2078]
[1741543188963,3.2078,2023.3,2022.8,0.36362404]
[1741543189157,0.98878,2022.9,2022.6,3.2078]
[1741543189464,3.2078,2023.3,2022.6,3.2078]
[1741543189663,0.0074239,2023.0,2022.6,3.2078]
[1741543190058,0.98882,2022.8,2022.6,3.2078]
[1741543190367,0.98883,2022.8,2022.6,3.2078]
[1741543190664,0.0074239,2023.0,2022.6,3.2078]
[1741543190964,3.2078,2023.9,2022.9,3.2078]
[1741543191161,3.2078,2023.9,2023.2,3.2078]
[1741543191354,2.47079,2023.8,2023.2,3.2078]
[1741543191558,0.98856,2023.3,2022.8,3.2078]
[1741543191759,3.116,2023.6,2023.1,3.2078]
[1741543192069,3.117,2023.9,2023.1,4.19643]
[1741543192257,0.98849,2023.5,2023.2,0.98857]
[1741543192661,0.0074239,2023.6,2023.1,3.2078]
[1741543193156,3.2152239,2023.6,2023.1,3.2078]
[1741543193358,3.2152239,2023.6,2023.1,4.19644]
[1741543193558,0.98858,2023.3,2023.1,3.2078]
[1741543193762,0.98861,2023.2,2023.1,3.2078]
[1741543194065,6.3128,2023.3,2022.7,3.2078]
[1741543194360,0.98873,2023.0,2022.7,4.19665]
[1741543194563,0.9888,2022.8,2022.7,3.2078]
[1741543194759,0.98875,2022.9,2022.7,3.2078]
[1741543194959,3.2078,2023.0,2022.7,3.2078]
[1741543195262,1.345,2023.5,2023.3,0.98856]
[1741543195461,1.345,2023.5,2022.8,2.47201]
[1741543195462,0.98849,2023.5,2023.2,0.98859]
[1741543195654,6.3182239,2023.6,2023.1,0.98864]
[1741543195856,6.3182239,2023.6,2023.1,0.98865]
[1741543196062,0.98849,2023.5,2023.0,3.2078]
[1741543196260,0.0074239,2023.6,2023.4,3.2078]
[1741543196560,1.345,2024.0,2023.9,0.98827]
[1741543196858,3.2078,2024.3,2023.4,3.2078]
[1741543197068,2.33304,2024.4,2023.7,3.2078]
[1741543197365,0.98814,2024.2,2024.0,0.98821]
[1741543197560,0.0074239,2024.3,2023.8,0.0074239]
[1741543198066,3.2152239,2024.3,2023.8,0.0074239]
[1741543198362,0.98827,2023.9,2023.8,0.0074239]
[1741543198565,0.98823,2024.0,2023.8,0.9957139]
[1741543198762,3.2152239,2024.3,2023.8,0.0074239]
[1741543198963,0.0074239,2024.3,2023.9,3.2078]
[1741543199467,3.2152239,2024.3,2023.8,0.0074239]
[1741543199667,0.98827,2023.9,2023.8,0.0074239]
[1741543199866,3.2152239,2024.3,2023.8,0.0074239]
[1741543200059,0.98827,2023.9,2023.8,0.0074239]
[1741543200261,3.2152239,2024.3,2023.8,0.0074239]
[1741543200561,3.2152239,2024.3,2023.3,6.1471]
[1741543200562,3.2078,2024.0,2023.3,3.2078]
[1741543200768,3.2078,2024.0,2023.6,0.98837]
[1741543200957,3.098,2024.2,2023.7,3.2078]
[1741543201361,0.98814,2024.2,2024.0,0.98821]
[1741543201569,3.1054239,2024.3,2023.7,3.2078]
[1741543201769,3.2078,2024.2,2023.9,0.0074239]
[1741543201968,3.1054239,2024.3,2023.9,0.0074239]
[1741543202164,0.98822,2024.0,2023.9,0.0074239]
[1741543202670,2.47067,2023.9,2023.2,3.2563]
[1741543202862,0.98851,2023.4,2023.2,4.24488]
[1741543203059,3.098,2023.8,2023.3,2.4714]
[1741543203259,3.098,2023.8,2023.3,0.37104208]
[1741543203568,3.098,2023.8,2023.2,6.4641]
[1741543203865,0.98839,2023.7,2023.5,0.98844]
[1741543204071,3.098,2023.8,2023.3,0.0074239]
[1741543204265,3.098,2023.8,2023.4,0.9885]
[1741543204466,3.098,2023.8,2023.3,0.0074239]
[1741543204675,0.98851,2023.4,2023.3,0.0074239]
[1741543205066,3.098,2023.8,2023.3,0.0074239]
[1741543205266,0.98851,2023.4,2023.3,0.0074239]
[1741543205768,2.47163,2023.2,2022.5,3.2078]
[1741543205976,2.4718,2023.0,2022.5,3.2078]
[1741543206162,3.098,2023.1,2023.0,0.9887]
[1741543206366,3.098,2023.1,2022.8,3.2078]
[1741543206670,3.098,2023.1,2022.5,3.2078]
[1741543207071,0.98878,2022.9,2022.5,3.2152239]
[1741543207272,0.98878,2022.9,2022.6,0.98888]
[1741543207470,0.0074239,2023.0,2022.5,3.2152239]
[1741543207869,3.2078,2023.3,2022.9,3.2078]
[1741543208070,3.098,2023.7,2023.2,3.2078]
[1741543208267,5.4312,2024.1,2023.8,0.9883]
[1741543208478,3.2859,2024.4,2023.8,3.2078]
[1741543208674,3.2078,2024.6,2023.8,3.57134517]
[1741543208877,6.3058,2025.0,2024.4,3.2078]
[1741543209078,6.3058,2025.0,2024.5,0.98795]
[1741543209272,0.98767,2025.2,2024.8,0.9878]
[1741543209470,0.0074239,2025.0,2024.7,3.2078]
[1741543209774,0.0074239,2025.0,2024.5,0.98795]
[1741543209775,0.98782,2024.9,2024.5,0.98795]
[1741543209973,0.0074239,2025.0,2024.4,3.2078]
[1741543210174,5.6845539,2025.0,2024.1,3.2078]
[1741543210374,0.98809,2024.3,2024.1,3.2078]
[1741543210570,0.98812,2024.2,2024.1,3.2078]
[1741543210880,0.98817,2024.1,2024.0,0.0074239]
[1741543211075,3.2078,2024.7,2024.0,0.0074239]
[1741543211281,5.5676,2024.8,2024.2,3.2078]
[1741543211282,3.098,2024.8,2024.2,3.2078]
[1741543211474,0.98799,2024.5,2024.2,4.1959]
[1741543211674,0.98807,2024.3,2024.2,3.2078]
[1741543212077,3.2078,2024.7,2024.0,0.0074239]
[1741543212690,0.98802,2024.4,2024.3,3.2078]
[1741543212881,0.98817,2024.1,2024.0,3.2152239]
[1741543213086,0.98817,2024.1,2024.0,0.0074239]
[1741543213380,4.19597,2024.1,2024.0,0.0074239]
[1741543213686,3.098,2024.3,2024.0,0.0074239]
[1741543214084,3.3147,2024.4,2024.0,0.0074239]
[1741543214281,0.98813,2024.2,2024.0,0.9956239]
[1741543214587,0.98817,2024.1,2024.0,0.0074239]
[1741543214781,3.3147,2024.4,2024.0,0.0074239]
[1741543214979,0.98817,2024.1,2024.0,0.0074239]
[1741543215679,3.3147,2024.4,2024.0,0.0074239]
[1741543216081,0.98807,2024.3,2024.0,0.9956039]
[1741543216282,0.98817,2024.1,2024.0,0.0074239]
[1741543216587,3.3147,2024.4,2024.0,0.0074239]
[1741543216783,0.98817,2024.1,2024.0,0.0074239]
[1741543217387,1.0049,2024.4,2024.0,6.9564239]
[1741543217585,0.0074239,2025.0,2024.0,6.9564239]
[1741543217586,0.0074239,2025.0,2024.9,0.98778]
[1741543217778,6.8403,2025.7,2024.9,3.2078]
[1741543217978,6.5846,2025.7,2025.3,3.2078]
[1741543218179,0.98753,2025.4,2025.3,3.2078]
[1741543218385,6.3048,2026.0,2025.0,2.949]
[1741543218687,3.2453,2025.7,2025.6,0.98744]
[1741543218883,3.2453,2025.7,2025.6,4.19524]
[1741543219083,0.2465,2025.8,2025.6,7.2078]
[1741543219290,0.98739,2025.7,2025.6,3.2078]
[1741543219491,0.2465,2025.8,2025.6,3.2078]
[1741543219688,1.23386,2025.8,2025.6,3.2078]
[1741543219894,0.98748,2025.5,2025.4,6.35700503]
[1741543220201,0.98748,2025.5,2025.4,5.03e-06]
[1741543220391,6.3048,2025.6,2025.4,5.03e-06]
[1741543220587,0.2465,2025.8,2025.4,5.03e-06]
[1741543220981,0.98748,2025.5,2025.4,5.03e-06]
[1741543221994,0.2465,2025.8,2025.4,5.03e-06]
[1741543222190,0.98739,2025.7,2025.6,3.2078]
[1741543222695,1.33410879,2025.9,2025.6,3.2078]
[1741543222995,1.33410879,2025.9,2025.8,0.98734]
[1741543224189,1.33410879,2025.9,2025.8,4.98734]
[1741543224385,1.33410879,2025.9,2025.8,0.98734]
[1741543224582,1.33410879,2025.9,2025.7,4.47596]
[1741543224782,1.33410879,2025.9,2025.7,3.4886]
[1741543224986,1.33410879,2025.9,2025.6,3.2078]
[1741543225392,1.33410879,2025.9,2025.8,0.98734]
[1741543225593,1.33410879,2025.9,2025.7,0.98736]
[1741543225789,1.33410879,2025.9,2025.6,3.2078]
[1741543225989,1.33410879,2025.9,2025.7,0.98736]
[1741543226297,1.33410879,2025.9,2025.7,0.98735]
[1741543226595,0.00740503,2026.1,2025.7,2.949]
[1741543226790,3.2078,2027.3,2026.0,5.67585]
[1741543227093,6.3028,2027.3,2026.8,3.2078]
[1741543227291,2.46665,2027.2,2026.5,3.2078]
[1741543227493,6.3028,2027.3,2026.5,3.2078]
[1741543227703,6.3028,2027.3,2026.5,4.19477]
[1741543227704,0.98684,2026.9,2026.5,4.19477]
[1741543227893,0.9868,2026.9,2026.8,3.2078]
[1741543228193,0.98685,2026.8,2026.7,0.00740503]
[1741543228987,0.00737483,2027.1,2026.7,0.00740503]
[1741543229197,0.00737483,2027.1,2026.8,3.2078]
[1741543229794,0.00737483,2027.1,2027.0,0.98675]
[1741543230094,3.2078,2027.7,2027.0,2.949]
[1741543230397,6.5857,2028.3,2027.6,3.2078]
[1741543230593,0.98625,2028.1,2027.7,0.98639]
[1741543230791,3.2078,2027.9,2027.2,3.2078]
[1741543230991,5.67363,2027.9,2027.2,3.2078]
[1741543231193,3.2078,2027.9,2026.9,3.4908]
[1741543231390,0.98656,2027.4,2027.3,0.00740503]
[1741543231797,0.98656,2027.4,2026.0,2.46809]
[1741543231798,2.46689,2027.1,2026.2,3.2078]
[1741543231994,0.98709,2026.3,2026.2,3.2078]
[1741543232197,3.094,2026.8,2026.2,3.2078]
[1741543232391,0.9869,2026.7,2026.6,3.2078]
[1741543232600,3.094,2026.8,2026.6,3.2078]
[1741543232895,3.094,2026.8,2026.7,0.9869]
[1741543233096,3.21520503,2026.9,2026.6,3.2078]
[1741543233298,0.00740503,2026.9,2026.6,4.19472]
[1741543233497,0.00740503,2026.9,2026.6,3.2078]
[1741543233997,0.00740503,2026.9,2026.8,0.98685]
[1741543234197,0.98666,2027.2,2027.0,0.98674]
[1741543234700,4.64,2027.8,2027.1,0.98669]
[1741543234898,5.76098,2027.8,2027.2,0.98663]
[1741543235095,0.98654,2027.5,2027.2,0.98663]
[1741543235298,3.2078,2027.9,2027.3,3.2078]
[1741543235992,0.98629,2028.0,2027.7,0.9864]
[1741543236192,0.98634,2027.9,2027.3,6.6917]
[1741543236400,5.67317,2028.3,2027.5,4.19426]
[1741543236592,5.67317,2028.3,2027.6,0.00740503]
[1741543236788,0.98631,2028.0,2027.6,0.00740503]
[1741543237097,2.46543,2028.2,2027.6,0.00740503]
[1741543237600,0.98641,2027.7,2027.6,0.00740503]
[1741543237993,2.46555,2028.1,2027.6,0.00740503]
[1741543238194,0.98641,2027.7,2027.6,0.00740503]
[1741543238892,0.98641,2027.7,2027.6,5.03e-06]
[1741543238893,4.19421,2027.7,2027.6,5.03e-06]
[1741543239203,2.46647,2027.4,2026.8,25.3548]
[1741543239404,0.9868,2026.9,2026.8,25.3548]
[1741543239897,2.46683,2027.1,2026.5,10.1452]
[1741543240204,0.98709,2026.3,2026.2,6.1568]
[1741543240397,0.98714,2026.2,2026.1,22.143]
[1741543240596,6.30720503,2027.0,2026.2,2.96147]
[1741543240796,3.21520503,2027.0,2026.7,3.2078]
[1741543240996,0.98698,2026.6,2026.3,7.14387]
[1741543241196,0.98702,2026.5,2026.3,6.1568]
[1741543241494,0.98702,2026.5,2026.3,4.19489]
[1741543241698,0.98705,2026.4,2026.3,3.2078]
[1741543241894,0.98709,2026.3,2026.1,23.13017]
[1741543242099,3.092,2026.8,2026.1,22.143]
[1741543242497,0.9869,2026.7,2026.4,0.98705]
[1741543242697,0.00740503,2027.0,2026.3,3.2078]
[1741543242698,2.46701,2026.9,2026.3,3.2078]
[1741543242899,0.00740503,2027.0,2026.3,3.2078]
[1741543243205,0.9869,2026.7,2026.6,3.2078]
[1741543243805,0.98702,2026.5,2026.3,4.19489]
[1741543243992,2.46701,2026.9,2026.2,2.949]
[1741543244197,0.98719,2026.1,2026.0,3.21520503]
[1741543244493,0.98719,2026.1,2026.0,5.03e-06]
[1741543245095,4.98719,2026.1,2026.0,5.03e-06]
[1741543245700,0.98719,2026.1,2026.0,5.03e-06]
[1741543247599,0.98709,2026.3,2026.0,5.03e-06]
[1741543247799,1.345,2026.5,2026.3,0.98707]
[1741543247800,0.987,2026.5,2026.3,0.98707]
[1741543248104,0.98703,2026.5,2026.3,0.98709]
[1741543248300,0.98714,2026.2,2026.1,3.2078]
[1741543248609,2.46726,2026.7,2026.1,3.2078]
[1741543248799,3.2078,2026.8,2026.1,3.2078]
[1741543249005,0.98714,2026.3,2026.1,4.19498]
[1741543249308,2.46726,2026.7,2026.1,3.2078]
[1741543249511,0.98711,2026.3,2026.1,4.19497]
[1741543250006,0.98719,2026.1,2026.0,5.03e-06]
[1741543250399,3.092,2026.4,2026.0,5.03e-06]
[1741543250598,3.2078,2026.5,2026.1,3.2078]
[1741543250807,0.98706,2026.4,2026.2,0.98711]
[1741543250999,3.2078,2026.5,2026.1,3.2078]
[1741543251000,0.98712,2026.3,2026.1,3.2078]
[1741543251199,0.98713,2026.3,2026.1,4.19497]
[1741543251400,0.98707,2026.4,2026.2,0.98711]
[1741543251597,3.2078,2026.5,2026.1,3.2078]
[1741543251896,0.98714,2026.2,2026.0,5.03e-06]
[1741543252101,3.2078,2026.5,2026.0,5.03e-06]
[1741543252296,0.98709,2026.3,2026.2,3.2078]
[1741543252702,0.98718,2026.2,2026.0,0.98723503]
[1741543252903,0.98716,2026.2,2026.0,5.03e-06]
[1741543253097,3.2078,2026.5,2026.1,3.2078]
[1741543253303,0.98714,2026.2,2026.1,3.2078]
[1741543253506,0.98711,2026.3,2026.1,4.19497]
[1741543253809,0.98714,2026.2,2026.1,3.2078]
[1741543253998,5.67538,2026.5,2026.0,5.03e-06]
[1741543254198,0.98719,2026.1,2026.0,5.03e-06]
[1741543256800,3.2078,2026.5,2026.0,5.03e-06]
[1741543257000,3.2078,2026.5,2026.2,0.98713]
[1741543257202,0.98709,2026.4,2026.2,0.98713]
[1741543257398,0.98709,2026.4,2026.0,5.03e-06]
[1741543257600,0.98709,2026.3,2026.2,3.2078]
[1741543258406,0.98699,2026.6,2026.3,0.98707]
[1741543258605,0.00740503,2027.0,2026.5,3.2078]
[1741543258803,0.98685,2026.9,2026.8,3.2078]
[1741543258998,0.00740503,2027.0,2026.9,0.9868]
[1741543259204,0.98687,2026.8,2026.6,0.98693]
[1741543259503,0.00740503,2027.0,2026.5,3.2078]
[1741543259697,0.00740503,2027.0,2026.9,3.2078]
[1741543259905,0.00740503,2027.0,2026.9,4.55941996]
[1741543260211,0.00740503,2027.0,2026.9,0.9868]
[1741543260612,3.2078,2027.4,2026.9,7.56813939]
[1741543260799,3.2078,2027.4,2026.9,3.56813939]
[1741543261007,3.2078,2027.4,2026.9,7.07423939]
[1741543261206,0.98643,2027.7,2027.4,0.98653]
[1741543261601,0.98634,2027.9,2027.6,3.2078]
[1741543261806,0.0074,2027.8,2027.6,3.2078]
[1741543262006,0.99379,2027.8,2027.6,4.19425]
[1741543262207,0.0074,2027.8,2027.7,0.98641]
[1741543262612,0.0074,2027.8,2027.6,3.2078]
[1741543262915,0.98653,2027.5,2027.3,4.20179503]
[1741543263112,0.0074,2027.8,2027.3,0.00740503]
[1741543263113,0.98656,2027.4,2027.3,0.00740503]
[1741543263314,0.98656,2027.4,2027.0,3.2078]
[1741543263315,3.2078,2027.4,2027.0,3.2078]
[1741543263812,0.98661,2027.3,2027.1,0.98666]
[1741543264109,3.0984,2027.8,2027.0,3.2078]
[1741543264310,0.98657,2027.4,2027.2,0.98663]
[1741543264510,0.99378,2027.8,2027.6,0.98645]
[1741543264711,0.0074,2027.8,2027.7,4.19421]
[1741543264915,0.0074,2027.8,2027.7,3.2078]
[1741543265119,0.98651,2027.5,2027.4,6.1568]
[1741543265313,0.0074,2027.8,2027.4,6.1568]
[1741543265514,0.98651,2027.5,2027.4,6.1568]
[1741543265709,0.98656,2027.4,2027.2,0.99405503]
[1741543265911,0.98661,2027.3,2027.2,0.00740503]
[1741543266113,3.09,2027.3,2026.8,3.2078]
[1741543266312,3.2078,2027.0,2026.3,2.949]
[1741543266608,3.2078,2027.0,2026.3,0.37770502]
[1741543266809,0.98693,2026.7,2026.5,4.19479]
[1741543267014,0.98695,2026.6,2026.5,3.2078]
[1741543267215,0.98693,2026.7,2026.5,3.2078]
[1741543267413,3.2078,2027.0,2026.5,3.2078]
[1741543267615,0.00740503,2026.8,2026.5,3.2078]
[1741543267813,0.98705,2026.4,2026.3,0.00740503]
[1741543268119,3.09740503,2026.8,2026.3,0.00740503]
[1741543268320,3.09740503,2026.8,2026.5,4.19478]
[1741543268617,0.00740503,2026.8,2026.6,0.9869]
[1741543268817,0.00740503,2026.8,2026.7,0.9869]
[1741543269218,6.5064,2027.7,2026.7,4.0]
[1741543269417,3.09,2027.5,2026.9,3.2078]
[1741543269720,0.9869,2026.7,2026.6,2.949]
[1741543269920,0.98698,2026.6,2026.3,3.21520503]
[1741543270117,6.2978,2027.0,2026.3,3.21520503]
[1741543270616,3.2078,2026.7,2026.3,3.21520503]
[1741543270917,2.46776,2026.3,2025.6,3.2078]
[1741543271121,0.98726,2026.0,2025.6,3.2078]
[1741543271313,3.09,2026.2,2026.1,0.98719]
[1741543271510,0.98739,2025.8,2025.6,3.2078]
[1741543271710,3.2078,2025.8,2025.2,32.1377]
[1741543271910,3.2078,2026.1,2025.5,3.2078]
[1741543272217,0.00740503,2025.7,2025.4,0.00740503]
[1741543272613,0.98748,2025.5,2025.4,0.00740503]
[1741543272816,0.9878,2024.9,2024.6,4.3674]
[1741543273023,3.2078,2025.2,2024.6,3.3795]
[1741543273413,3.2078,2025.2,2024.5,18.64253643]
[1741543273615,3.2078,2024.9,2024.5,18.64253643]
[1741543273916,0.98791,2024.7,2024.5,18.64994146]
[1741543274321,0.98783,2024.8,2024.5,19.63788146]
[1741543274519,3.09,2024.9,2024.5,0.99534503]
[1741543274722,0.98792,2024.6,2024.5,0.00740503]
[1741543275026,4.19572,2024.6,2024.5,0.00740503]
[1741543275231,3.09,2024.9,2024.7,0.98786]
[1741543275419,3.09,2024.9,2024.5,0.00740503]
[1741543275615,0.98785,2024.8,2024.5,0.99535503]
[1741543275824,3.09,2024.9,2024.7,0.98787]
[1741543276126,4.0778,2024.9,2024.5,0.99534503]
[1741543276324,4.0778,2024.9,2024.6,3.2078]
[1741543276525,3.09,2024.9,2024.5,0.00740503]
[1741543276826,0.98791,2024.7,2024.5,0.00740503]
[1741543277128,0.9879,2024.7,2024.5,0.00740503]
[1741543277330,3.09,2024.9,2024.5,0.00740503]
[1741543277628,0.98783,2024.8,2024.7,3.2078]
[1741543277926,3.2078,2025.1,2024.5,0.00740503]
[1741543278226,0.98792,2024.6,2024.5,0.00740503]
[1741543279125,1.345,2025.0,2024.5,0.00740503]
[1741543279318,2.33273,2025.0,2024.8,0.98782]
[1741543279523,0.9878,2024.9,2024.6,0.9879]
[1741543279827,0.98792,2024.6,2024.5,0.00740503]
[1741543280526,2.47003,2024.5,2023.5,0.36863803]
[1741543280724,0.98822,2024.0,2023.4,3.2078]
[1741543280928,3.2078,2023.8,2023.4,3.2078]
[1741543281128,0.98853,2023.4,2023.1,6.1568]
[1741543281330,3.2078,2023.8,2023.1,3.2078]
[1741543281522,3.091,2024.0,2023.6,0.98838]
[1741543281824,0.00740503,2023.7,2023.2,0.00740503]
[1741543282417,0.00740503,2023.7,2023.4,3.2078]
[1741543282727,0.00740503,2023.7,2023.2,0.00740503]
[1741543282929,0.98854,2023.4,2023.2,0.00740503]
[1741543283223,0.00740503,2023.7,2023.2,0.00740503]
[1741543283731,0.98853,2023.4,2023.2,0.00740503]
[1741543284027,0.98856,2023.3,2023.2,0.00740503]
[1741543285619,5.345,2023.3,2022.3,4.19683]
[1741543285826,5.345,2023.3,2022.3,3.2078]
[1741543285827,0.989,2022.4,2022.3,3.2078]
[1741543286129,3.2078,2022.6,2021.9,3.2078]
[1741543286428,4.07998,2022.5,2022.2,0.98907]
[1741543286631,4.07998,2022.5,2021.9,3.2078]
[1741543286632,3.091,2022.5,2021.9,3.2078]
[1741543286832,3.2078,2022.3,2022.1,0.00494171]
[1741543287031,3.2078,2022.3,2021.5,22.164]
[1741543287224,0.98936,2021.7,2021.4,4.19726]
[1741543287429,4.08125,2021.9,2021.6,0.98938]
[1741543287742,4.08125,2021.9,2021.1,12.09776]
[1741543287743,3.092,2021.9,2021.7,3.2078]
[1741543287923,3.092,2021.9,2021.4,3.2078]
[1741543288830,4.08126,2021.9,2021.6,0.98936]
[1741543289025,3.21520503,2022.6,2022.2,0.98907]
[1741543289222,0.989,2022.4,2022.1,0.98912]
[1741543289424,3.21520503,2022.6,2022.5,0.98895]
[1741543289425,0.00740503,2022.6,2022.5,0.98895]
[1741543290021,0.00740503,2022.6,2022.0,3.2078]
[1741543290226,0.00740503,2022.6,2022.3,3.2078]
[1741543290732,0.00740503,2022.6,2022.5,0.98895]
[1741543291130,0.98887,2022.7,2022.4,0.98897]
[1741543291329,2.47165,2023.1,2022.3,3.2078]
[1741543291526,0.98873,2023.0,2022.7,0.98882]
[1741543291832,0.98873,2023.0,2022.3,3.2078]
[1741543291833,3.2078,2023.2,2023.0,0.9887]
[1741543292029,0.98867,2023.1,2022.8,0.98876]
[1741543292230,4.19643,2023.2,2022.9,0.99613503]
[1741543292430,3.2078,2023.2,2023.1,0.98866]
[1741543292725,0.00740503,2023.3,2023.1,3.2078]
[1741543292926,3.5523,2024.1,2023.4,2.47118]
[1741543293129,3.093,2024.3,2023.5,3.2078]
[1741543293326,3.093,2024.3,2023.9,3.2078]
[1741543293527,3.093,2024.3,2023.6,3.2078]
[1741543294027,3.2078,2024.5,2023.9,3.2078]
[1741543294227,0.99554503,2024.2,2023.9,0.98823]
[1741543294536,0.00740503,2024.2,2024.0,0.98818]
[1741543294828,0.00740503,2024.2,2024.1,0.98817]
[1741543295247,0.00740503,2024.2,2023.9,3.2078]
[1741543295438,0.00740503,2024.2,2024.1,0.98817]
[1741543295735,0.00740503,2024.2,2024.0,0.98818]
[1741543295936,0.00740503,2024.2,2024.1,0.98817]
[1741543296132,3.2078,2024.9,2023.9,7.2078]
[1741543296329,3.093,2025.5,2024.8,3.2078]
[1741543296629,0.98775,2025.0,2024.6,0.98788]
[1741543296824,0.98801,2024.5,2024.2,3.2078]
[1741543297024,0.98807,2024.3,2024.2,3.2078]
[1741543297225,0.98807,2024.3,2023.3,9.9685]
[1741543297226,0.98838,2023.7,2023.3,9.9685]
[1741543297533,3.2078,2024.0,2023.6,3.2078]
[1741543298032,3.2078,2023.7,2022.9,3.2078]
[1741543298231,7.6448,2023.9,2023.2,3.2078]
[1741543298437,8.63311,2023.9,2023.6,0.98839]
[1741543298631,0.98838,2023.7,2023.5,3.2078]
[1741543298831,0.98848,2023.5,2023.3,0.00740503]
[1741543299031,3.092,2023.9,2023.3,0.00740503]
[1741543299536,0.00740503,2024.0,2023.9,0.98827]
[1741543299740,0.00740503,2024.0,2023.6,3.2078]
[1741543299937,0.98836,2023.7,2023.6,3.2078]
[1741543300138,3.092,2023.7,2023.3,0.00740503]
[1741543300336,3.092,2023.7,2023.6,0.98841]
[1741543300537,3.2078,2023.9,2023.5,3.2078]
[1741543300538,0.98836,2023.8,2023.5,4.19624]
[1741543300738,0.98836,2023.8,2023.6,0.9884]